[Event "11th LCC Rapid 2019"]
[Site "London"]
[Date "2019.12.07"]
[Round "2.15"]
[White "Harakis, Alexis M"]
[Black "Kerr, Duncan"]
[Result "1-0"]
[WhiteElo "2267"]
[BlackElo "1902"]
[PlyCount "105"]
[EventDate "2019.12.08"]
[EventType "swiss"]
[EventCountry "ENG"]
[TimeControl "15+10"]
[WhiteClock "0:00:13"]
[BlackClock "0:02:50"]

1. d4 {[%emt 0:00:00]} Nf6 {[%emt 0:00:00]} 2. c4 {[%emt 0:00:00]} e6 {[%emt 0:00:00]} 3. Nc3 {[%emt 0:00:00]} Bb4 {[%emt 0:00:00]} 4. Nf3 {[%emt 0:00:00]} O-O {[%emt 0:00:00]} 5. Bg5 {[%emt 0:00:00]} h6 {[%emt 0:00:00]} 6. Bh4 {[%emt 0:00:00]} c5 {[%emt 0:00:00]} 7. Rc1 {[%emt 0:00:00]} cxd4 {[%emt 0:00:00]} 8. Nxd4 {[%emt 0:00:00]} b6 {[%emt 0:00:00]} 9. a3 {[%emt 0:00:00]} Be7 {[%emt 0:00:00]} 10. e4 {[%emt 0:00:00]} Bb7 {[%emt 0:00:00]} 11. e5 {[%emt 0:00:00]} Ne8 {[%emt 0:00:00]} 12. Bxe7 {[%emt 0:00:00]} Qxe7 {[%emt 0:00:00]} 13. Ndb5 {[%emt 0:00:00]} a6 {[%emt 0:00:00]} 14. Nd6 {[%emt 0:00:00]} Nxd6 {[%emt 0:00:00]} 15. Qxd6 {[%emt 0:00:00]} Qg5 {[%emt 0:00:00]} 16. Rd1 {[%emt 0:00:00]} Nc6 {[%emt 0:00:00]} 17. h4 {[%emt 0:01:04]} Qxe5+ {[%emt 0:00:00]} 18. Qxe5 {[%emt 0:00:01]} Nxe5 {[%emt 0:00:00]} 19. f4 {[%emt 0:00:02]} Ng4 {[%emt 0:00:00]} 20. Rxd7 {[%emt 0:00:05]} Bc6 {[%emt 0:00:00]} 21. Rd6 {[%emt 0:00:01]} Rac8 {[%emt 0:00:00]} 22. Be2 {[%emt 0:00:14]} Ne3 {[%emt 0:00:00]} 23. Kf2 {[%emt 0:00:10]} Nf5 {[%emt 0:00:00]} 24. Rd2 {[%emt 0:00:12]} Rfd8 {[%emt 0:00:00]} 25. Rhd1 {[%emt 0:00:06]} Rxd2 {[%emt 0:00:00]} 26. Rxd2 {[%emt 0:00:01]} Nxh4 {[%emt 0:00:00]} 27. g4 {[%emt 0:00:34]} g5 {[%emt 0:00:00]} 28. fxg5 {[%emt 0:01:29]} hxg5 {[%emt 0:00:00]} 29. b4 {[%emt 0:00:02]} Kf8 {[%emt 0:01:58]} 30. Nd1 {[%emt 0:00:03]} Ke7 {[%emt 0:00:12]} 31. Ne3 {[%emt 0:00:01]} Ng6 {[%emt 0:00:11]} 32. b5 {[%emt 0:00:01]} axb5 {[%emt 0:00:01]} 33. cxb5 {[%emt 0:00:01]} Be4 {[%emt 0:00:20]} 34. Nc4 {[%emt 0:00:01]} Rb8 {[%emt 0:00:26]} 35. Rd6 {[%emt 0:00:13]} Ra8 {[%emt 0:00:30]} 36. Rxb6 {[%emt 0:00:02]} Bd5 {[%emt 0:00:08]} 37. Ra6 {[%emt 0:00:08]} Rb8 {[%emt 0:01:02]} 38. Ra7+ {[%emt 0:00:00]} Kf6 {[%emt 0:00:17]} 39. Ne3 {[%emt 0:00:01]} Be4 {[%emt 0:00:47]} 40. a4 {[%emt 0:00:06]} Ne5 {[%emt 0:00:05]} 41. a5 {[%emt 0:00:03]} Nd3+ {[%emt 0:00:08]} 42. Bxd3 {[%emt 0:00:03]} Bxd3 {[%emt 0:00:01]} 43. b6 {[%emt 0:00:01]} Be4 {[%emt 0:00:36]} 44. Nc4 {[%emt 0:00:05]} Bd5 {[%emt 0:00:05]} 45. Nd6 {[%emt 0:00:04]} Ke5 {[%emt 0:00:11]} 46. Rd7 {[%emt 0:00:43]} f5 {[%emt 0:00:10]} 47. b7 {[%emt 0:00:18]} fxg4 {[%emt 0:00:42]} 48. a6 {[%emt 0:00:02]} Rf8+ {[%emt 0:00:14]} 49. Nf7+ {[%emt 0:00:04]} Kf6 {[%emt 0:00:06]} 50. a7 {[%emt 0:00:04]} Bxb7 {[%emt 0:00:13]} 51. Rxb7 {[%emt 0:00:03]} Ra8 {[%emt 0:00:04]} 52. Nd6 {[%emt 0:00:07]} Ke5 {[%emt 0:00:15]} 53. Nc4+ {[%emt 0:00:00]} 1-0

[Event "11th LCC Rapid 2019"]
[Site "London"]
[Date "2019.12.07"]
[Round "2.16"]
[White "Onslow, Teddy"]
[Black "Johnson, Daniel"]
[Result "0-1"]
[WhiteElo "1746"]
[BlackElo "2144"]
[PlyCount "112"]
[EventDate "2019.12.08"]
[EventType "swiss"]
[EventCountry "ENG"]
[TimeControl "15+10"]
[WhiteClock "0:03:05"]
[BlackClock "0:00:30"]

1. d4 {[%emt 0:00:00]} Nf6 {[%emt 0:00:00]} 2. Bf4 {[%emt 0:00:00]} d5 {[%emt 0:00:00]} 3. e3 {[%emt 0:00:00]} c5 {[%emt 0:00:00]} 4. c3 {[%emt 0:00:00]} Nc6 {[%emt 0:00:00]} 5. Nd2 {[%emt 0:00:00]} Bf5 {[%emt 0:00:00]} 6. Ngf3 {[%emt 0:00:00]} e6 {[%emt 0:00:00]} 7. h3 {[%emt 0:00:00]} h6 {[%emt 0:00:00]} 8. Be2 {[%emt 0:00:00]} Bd6 {[%emt 0:00:00]} 9. Bxd6 {[%emt 0:00:00]} Qxd6 {[%emt 0:00:00]} 10. O-O {[%emt 0:00:00]} O-O {[%emt 0:00:00]} 11. Nh2 {[%emt 0:00:00]} e5 {[%emt 0:00:00]} 12. Ng4 {[%emt 0:00:00]} cxd4 {[%emt 0:00:00]} 13. Nxf6+ {[%emt 0:00:00]} Qxf6 {[%emt 0:00:00]} 14. cxd4 {[%emt 0:00:00]} exd4 {[%emt 0:00:00]} 15. Nf3 {[%emt 0:00:00]} dxe3 {[%emt 0:00:00]} 16. Qxd5 {[%emt 0:00:00]} Qxb2 {[%emt 0:00:00]} 17. Qxf5 {[%emt 0:00:00]} Qxe2 {[%emt 0:00:00]} 18. fxe3 {[%emt 0:00:00]} Qxe3+ {[%emt 0:00:00]} 19. Kh1 {[%emt 0:00:00]} Rad8 {[%emt 0:00:00]} 20. Rae1 {[%emt 0:00:00]} Qa3 {[%emt 0:00:00]} 21. Rf2 {[%emt 0:00:00]} Qd3 {[%emt 0:00:00]} 22. Qg4 {[%emt 0:00:00]} Rfe8 {[%emt 0:00:00]} 23. Ref1 {[%emt 0:00:00]} Re2 {[%emt 0:00:00]} 24. Qf4 {[%emt 0:00:00]} Rxf2 {[%emt 0:00:00]} 25. Rxf2 {[%emt 0:00:00]} Qd1+ {[%emt 0:00:00]} 26. Ng1 {[%emt 0:00:00]} Qd5 {[%emt 0:00:00]} 27. Ne2 {[%emt 0:00:00]} Ne5 {[%emt 0:00:00]} 28. Rf1 {[%emt 0:00:00]} Ng6 {[%emt 0:00:00]} 29. Qc7 {[%emt 0:00:00]} Rf8 {[%emt 0:00:00]} 30. Nc3 {[%emt 0:00:00]} Qd3 {[%emt 0:00:00]} 31. Rd1 {[%emt 0:00:00]} Qc2 {[%emt 0:00:00]} 32. Rd8 {[%emt 0:01:26]} Rxd8 {[%emt 0:00:00]} 33. Qxd8+ {[%emt 0:00:01]} Kh7 {[%emt 0:00:00]} 34. Qd4 {[%emt 0:00:07]} Qc1+ {[%emt 0:00:18]} 35. Nd1 {[%emt 0:00:32]} b5 {[%emt 0:00:27]} 36. Qd3 {[%emt 0:00:23]} b4 {[%emt 0:00:05]} 37. Kh2 {[%emt 0:02:44]} Qf4+ {[%emt 0:00:48]} 38. g3 {[%emt 0:00:12]} Qe5 {[%emt 0:00:08]} 39. h4 {[%emt 0:00:34]} h5 {[%emt 0:00:32]} 40. Kg2 {[%emt 0:00:25]} a5 {[%emt 0:00:26]} 41. Nf2 {[%emt 0:00:26]} a4 {[%emt 0:00:49]} 42. Qc4 {[%emt 0:00:10]} Qe6 {[%emt 0:00:18]} 43. Qxb4 {[%emt 0:00:08]} Qxa2 {[%emt 0:00:01]} 44. Qc5 {[%emt 0:00:04]} Qe2 {[%emt 0:00:09]} 45. Qf5 {[%emt 0:00:03]} a3 {[%emt 0:00:19]} 46. Qb1 {[%emt 0:00:26]} Qb2 {[%emt 0:00:13]} 47. Qf5 {[%emt 0:00:02]} a2 {[%emt 0:00:08]} 48. Qxh5+ {[%emt 0:00:02]} Kg8 {[%emt 0:00:01]} 49. Qd5 {[%emt 0:00:26]} a1=Q {[%emt 0:00:05]} 50. h5 {[%emt 0:00:00]} Nf8 {[%emt 0:00:10]} 51. h6 {[%emt 0:00:12]} Qf6 {[%emt 0:00:16]} 52. h7+ {[%emt 0:00:07]} Nxh7 {[%emt 0:00:07]} 53. Ng4 {[%emt 0:00:04]} Qab2+ {[%emt 0:00:14]} 54. Kh3 {[%emt 0:00:08]} Ng5+ {[%emt 0:00:04]} 55. Kh4 {[%emt 0:00:22]} Nf3+ {[%emt 0:00:44]} 56. Kh3 {[%emt 0:00:01]} Ng1# {[%emt 0:00:08]} 0-1

[Event "11th LCC Rapid 2019"]
[Site "London"]
[Date "2019.12.07"]
[Round "2.17"]
[White "Kuzhelev, Timur"]
[Black "Willmoth, Robert F"]
[Result "0-1"]
[WhiteElo "1745"]
[BlackElo "2111"]
[PlyCount "104"]
[EventDate "2019.12.08"]
[EventType "swiss"]
[EventCountry "ENG"]
[TimeControl "15+10"]
[WhiteClock "0:12:30"]
[BlackClock "0:13:39"]

1. e4 {[%emt 0:00:00]} d6 {[%emt 0:00:00]} 2. d4 {[%emt 0:00:00]} Nf6 {[%emt 0:00:00]} 3. f3 {[%emt 0:00:00]} c5 {[%emt 0:00:00]} 4. d5 {[%emt 0:00:00]} e6 {[%emt 0:00:00]} 5. c4 {[%emt 0:00:00]} b5 {[%emt 0:00:00]} 6. cxb5 {[%emt 0:00:00]} Bb7 {[%emt 0:00:00]} 7. Nc3 {[%emt 0:00:00]} exd5 {[%emt 0:00:00]} 8. exd5 {[%emt 0:00:00]} Nbd7 {[%emt 0:00:00]} 9. Nge2 {[%emt 0:00:00]} Qe7 {[%emt 0:00:00]} 10. Bg5 {[%emt 0:00:00]} h6 {[%emt 0:00:00]} 11. Bxf6 {[%emt 0:00:00]} Nxf6 {[%emt 0:00:00]} 12. Qd2 {[%emt 0:00:00]} g6 {[%emt 0:00:00]} 13. O-O-O {[%emt 0:00:00]} Bg7 {[%emt 0:00:00]} 14. Ng3 {[%emt 0:00:00]} O-O {[%emt 0:00:00]} 15. Nge4 {[%emt 0:00:00]} a6 {[%emt 0:00:00]} 16. bxa6 {[%emt 0:00:00]} Bxa6 {[%emt 0:00:00]} 17. Bxa6 {[%emt 0:00:00]} Nxe4 {[%emt 0:00:00]} 18. Qe2 {[%emt 0:00:00]} Qg5+ {[%emt 0:00:00]} 19. Kc2 {[%emt 0:00:00]} Nxc3 {[%emt 0:00:00]} 20. bxc3 {[%emt 0:00:00]} Rfe8 {[%emt 0:00:00]} 21. Qf1 {[%emt 0:00:00]} Qe5 {[%emt 0:00:00]} 22. Qd3 {[%emt 0:00:00]} Rxa6 {[%emt 0:00:00]} 23. Rhe1 {[%emt 0:00:00]} Rxa2+ {[%emt 0:00:00]} 24. Kb3 {[%emt 0:00:00]} Re2 {[%emt 0:00:00]} 25. Rxe2 {[%emt 0:00:00]} Qxe2 {[%emt 0:00:00]} 26. Qxe2 {[%emt 0:00:00]} Rxe2 {[%emt 0:00:00]} 27. Kc4 {[%emt 0:00:00]} Rxg2 {[%emt 0:00:00]} 28. Kb5 {[%emt 0:00:00]} Rxh2 {[%emt 0:00:00]} 29. Kc6 {[%emt 0:00:00]} Be5 {[%emt 0:00:00]} 30. Re1 {[%emt 0:00:00]} Rc2 {[%emt 0:00:00]} 31. Re4 {[%emt 0:00:00]} g5 {[%emt 0:00:00]} 32. c4 {[%emt 0:00:00]} Kf8 {[%emt 0:00:00]} 33. Kd7 {[%emt 0:00:00]} f5 {[%emt 0:00:00]} 34. Re1 {[%emt 0:00:00]} Rxc4 {[%emt 0:00:00]} 35. Ke6 {[%emt 0:00:00]} Rb4 {[%emt 0:00:00]} 36. Re2 {[%emt 0:00:00]} Ra4 {[%emt 0:00:00]} 37. Kxf5 {[%emt 0:00:00]} Kf7 {[%emt 0:00:00]} 38. Rxe5 {[%emt 0:00:00]} dxe5 {[%emt 0:00:00]} 39. Kxe5 {[%emt 0:00:00]} Ke7 {[%emt 0:00:00]} 40. f4 {[%emt 0:00:00]} gxf4 {[%emt 0:00:00]} 41. d6+ {[%emt 0:00:00]} Kd7 {[%emt 0:00:00]} 42. Kd5 {[%emt 0:00:00]} Rd4+ {[%emt 0:00:00]} 43. Kxc5 {[%emt 0:00:00]} Rxd6 {[%emt 0:00:00]} 44. Kc4 {[%emt 0:00:00]} Kc6 {[%emt 0:00:00]} 45. Kc3 {[%emt 0:00:00]} Kc5 {[%emt 0:00:00]} 46. Kc2 {[%emt 0:00:00]} Kc4 {[%emt 0:00:00]} 47. Kb2 {[%emt 0:00:00]} Rd3 {[%emt 0:00:00]} 48. Kc2 {[%emt 0:00:00]} f3 {[%emt 0:00:00]} 49. Kb2 {[%emt 0:00:00]} Rc3 {[%emt 0:00:00]} 50. Ka2 {[%emt 0:00:00]} Kb4 {[%emt 0:00:00]} 51. Kb2 {[%emt 0:00:00]} f2 {[%emt 0:00:00]} 52. Ka2 {[%emt 0:00:00]} Rb3 {[%emt 0:00:00]} 0-1

[Event "11th LCC Rapid 2019"]
[Site "London"]
[Date "2019.12.07"]
[Round "2.18"]
[White "Stewart, Ashley"]
[Black "Sandhu, Manvith"]
[Result "1-0"]
[WhiteElo "2172"]
[BlackElo "1673"]
[PlyCount "91"]
[EventDate "2019.12.08"]
[EventType "swiss"]
[EventCountry "ENG"]
[TimeControl "15+10"]
[WhiteClock "0:04:57"]
[BlackClock "0:03:13"]

1. d4 {[%emt 0:00:00]} d5 {[%emt 0:00:00]} 2. c4 {[%emt 0:00:00]} c6 {[%emt 0:00:00]} 3. Nf3 {[%emt 0:00:00]} Nf6 {[%emt 0:00:00]} 4. e3 {[%emt 0:00:00]} e6 {[%emt 0:00:00]} 5. Nbd2 {[%emt 0:00:00]} Nbd7 {[%emt 0:00:00]} 6. Bd3 {[%emt 0:00:00]} Bb4 {[%emt 0:00:00]} 7. O-O {[%emt 0:00:00]} O-O {[%emt 0:00:00]} 8. e4 {[%emt 0:00:00]} dxe4 {[%emt 0:00:00]} 9. Nxe4 {[%emt 0:00:00]} Nxe4 {[%emt 0:00:00]} 10. Bxe4 {[%emt 0:00:00]} Nf6 {[%emt 0:00:00]} 11. Bc2 {[%emt 0:00:00]} Be7 {[%emt 0:00:00]} 12. Bg5 {[%emt 0:00:00]} h6 {[%emt 0:00:00]} 13. Bh4 {[%emt 0:00:00]} b5 {[%emt 0:00:00]} 14. cxb5 {[%emt 0:00:00]} cxb5 {[%emt 0:00:00]} 15. Qd3 {[%emt 0:00:00]} g6 {[%emt 0:00:00]} 16. Qxb5 {[%emt 0:00:00]} a5 {[%emt 0:00:00]} 17. Rfd1 {[%emt 0:00:00]} Ba6 {[%emt 0:00:00]} 18. Qe5 {[%emt 0:00:00]} Nd5 {[%emt 0:00:00]} 19. Bxe7 {[%emt 0:00:00]} Qxe7 {[%emt 0:00:00]} 20. Bd3 {[%emt 0:00:00]} Bxd3 {[%emt 0:00:00]} 21. Rxd3 {[%emt 0:00:00]} Nb4 {[%emt 0:00:00]} 22. Rc3 {[%emt 0:00:00]} Rfc8 {[%emt 0:00:00]} 23. Rxc8+ {[%emt 0:00:00]} Rxc8 {[%emt 0:00:00]} 24. Qxa5 {[%emt 0:00:00]} Nd5 {[%emt 0:00:00]} 25. Qd2 {[%emt 0:00:00]} Qc7 {[%emt 0:00:00]} 26. Qxh6 {[%emt 0:00:00]} Nf4 {[%emt 0:00:00]} 27. h3 {[%emt 0:00:00]} Ne2+ {[%emt 0:00:00]} 28. Kh1 {[%emt 0:00:00]} Qd7 {[%emt 0:00:00]} 29. Qd2 {[%emt 0:00:10]} Nxd4 {[%emt 0:00:00]} 30. Qxd4 {[%emt 0:00:06]} Qc7 {[%emt 0:00:00]} 31. Rd1 {[%emt 0:00:08]} Qa5 {[%emt 0:00:00]} 32. a3 {[%emt 0:00:26]} Qf5 {[%emt 0:00:23]} 33. Qh4 {[%emt 0:01:18]} Qc2 {[%emt 0:00:14]} 34. Rd8+ {[%emt 0:00:04]} Rxd8 {[%emt 0:00:07]} 35. Qxd8+ {[%emt 0:00:02]} Kg7 {[%emt 0:00:02]} 36. Qd2 {[%emt 0:00:06]} Qb1+ {[%emt 0:00:05]} 37. Kh2 {[%emt 0:00:01]} Qf5 {[%emt 0:00:04]} 38. Qd4+ {[%emt 0:00:07]} Kg8 {[%emt 0:00:13]} 39. Ne5 {[%emt 0:00:19]} f6 {[%emt 0:00:10]} 40. Nd7 {[%emt 0:00:16]} e5 {[%emt 0:00:08]} 41. Qg4 {[%emt 0:00:22]} Qc2 {[%emt 0:00:53]} 42. Qe6+ {[%emt 0:00:27]} Kh7 {[%emt 0:00:16]} 43. Nxf6+ {[%emt 0:00:29]} Kg7 {[%emt 0:00:06]} 44. Qe7+ {[%emt 0:00:05]} Kh6 {[%emt 0:00:01]} 45. Ng8+ {[%emt 0:00:15]} Kh5 {[%emt 0:00:06]} 46. g4# {[%emt 0:00:01]} 1-0

[Event "11th LCC Rapid 2019"]
[Site "London"]
[Date "2019.12.07"]
[Round "2.19"]
[White "Orgler, Philipp"]
[Black "Dupuis, Denis K"]
[Result "0-1"]
[WhiteElo "2056"]
[BlackElo "1599"]
[PlyCount "81"]
[EventDate "2019.12.08"]
[EventType "swiss"]
[EventCountry "ENG"]
[TimeControl "15+10"]
[WhiteClock "0:04:29"]

1. b3 {[%emt 0:00:25]} e5 {[%emt 0:00:03]} 2. Bb2 Nc6 {[%emt 0:00:32]} 3. e3 {[%emt 0:00:05]} d5 {[%emt 0:00:01]} 4. Bb5 {[%emt 0:00:25]} Bd6 {[%emt 0:00:19]} 5. Nf3 {[%emt 0:00:10]} Qe7 {[%emt 0:00:10]} 6. d4 {[%emt 0:00:10]} e4 {[%emt 0:00:10]} 7. Ne5 {[%emt 0:00:10]} Bxe5 {[%emt 0:00:00]} 8. dxe5 {[%emt 0:00:00]} a6 {[%emt 0:00:00]} 9. Bxc6+ {[%emt 0:00:00]} bxc6 {[%emt 0:00:00]} 10. O-O {[%emt 0:00:00]} Nh6 {[%emt 0:00:00]} 11. c4 {[%emt 0:00:00]} Be6 {[%emt 0:00:00]} 12. Qc2 {[%emt 0:00:00]} O-O {[%emt 0:00:00]} 13. Ba3 {[%emt 0:00:00]} Qg5 {[%emt 0:00:00]} 14. Bxf8 {[%emt 0:00:00]} Rxf8 {[%emt 0:00:00]} 15. cxd5 {[%emt 0:00:00]} cxd5 {[%emt 0:00:00]} 16. Nc3 {[%emt 0:00:00]} Qxe5 {[%emt 0:00:00]} 17. Rae1 {[%emt 0:00:00]} Ng4 {[%emt 0:00:00]} 18. f4 {[%emt 0:00:00]} exf3 {[%emt 0:00:00]} 19. gxf3 {[%emt 0:00:00]} Nxe3 {[%emt 0:00:00]} 20. Qd3 {[%emt 0:00:00]} Qg5+ {[%emt 0:00:00]} 21. Kf2 {[%emt 0:00:00]} Nxf1 {[%emt 0:00:00]} 22. Rxf1 {[%emt 0:00:00]} Qh4+ {[%emt 0:00:00]} 23. Kg1 {[%emt 0:00:00]} c5 {[%emt 0:00:00]} 24. Ne2 {[%emt 0:00:00]} c4 {[%emt 0:00:00]} 25. Qd2 {[%emt 0:00:00]} Rc8 {[%emt 0:00:00]} 26. bxc4 {[%emt 0:00:00]} dxc4 {[%emt 0:00:00]} 27. Ng3 {[%emt 0:00:00]} c3 {[%emt 0:00:00]} 28. Qe3 {[%emt 0:00:00]} Qb4 {[%emt 0:00:00]} 29. Ne4 {[%emt 0:00:00]} c2 {[%emt 0:00:00]} 30. Rc1 {[%emt 0:00:00]} Bxa2 {[%emt 0:00:00]} 31. Qf4 {[%emt 0:01:04]} Qd4+ {[%emt 0:00:00]} 32. Kg2 {[%emt 0:00:25]} Be6 {[%emt 0:00:00]} 33. h4 {[%emt 0:02:31]} f5 {[%emt 0:00:00]} 34. Qd6 {[%emt 0:00:03]} Qxd6 {[%emt 0:00:00]} 35. Nxd6 {[%emt 0:00:02]} Rd8 {[%emt 0:00:00]} 36. Nb7 {[%emt 0:00:04]} Rd2+ {[%emt 0:00:00]} 37. Kg3 {[%emt 0:00:08]} Bc4 {[%emt 0:00:17]} 38. Nc5 {[%emt 0:00:08]} Rd5 {[%emt 0:00:30]} 39. Na4 {[%emt 0:00:10]} Bb3 {[%emt 0:00:19]} 40. Nc3 {[%emt 0:00:27]} Rd1 {[%emt 0:00:05]} 41. Nb1 {[%emt 0:00:38]} 0-1

[Event "11th LCC Rapid 2019"]
[Site "London"]
[Date "2019.12.07"]
[Round "2.20"]
[White "Chakanyuka, Charles"]
[Black "Ignatovic, Ernest"]
[Result "0-1"]
[WhiteElo "1995"]
[BlackElo "1703"]
[PlyCount "124"]
[EventDate "2019.12.08"]
[EventType "swiss"]
[EventCountry "ENG"]
[TimeControl "15+10"]
[WhiteClock "0:01:29"]
[BlackClock "0:02:52"]

1. c4 {[%emt 0:00:00]} Nf6 {[%emt 0:00:00]} 2. Nc3 {[%emt 0:00:00]} d6 {[%emt 0:00:00]} 3. Nf3 {[%emt 0:00:00]} g6 {[%emt 0:00:00]} 4. g3 {[%emt 0:00:00]} Bg7 {[%emt 0:00:00]} 5. Bg2 {[%emt 0:00:00]} O-O {[%emt 0:00:00]} 6. O-O {[%emt 0:00:00]} e5 {[%emt 0:00:00]} 7. d3 {[%emt 0:00:00]} Nc6 {[%emt 0:00:00]} 8. Rb1 {[%emt 0:00:00]} Rb8 {[%emt 0:00:00]} 9. b4 {[%emt 0:00:00]} b6 {[%emt 0:00:00]} 10. b5 {[%emt 0:00:00]} Na5 {[%emt 0:00:00]} 11. Bg5 {[%emt 0:00:00]} h6 {[%emt 0:00:00]} 12. Bd2 {[%emt 0:00:00]} Nh5 {[%emt 0:00:00]} 13. Qc1 {[%emt 0:00:00]} Kh7 {[%emt 0:00:00]} 14. Nd5 {[%emt 0:00:00]} Nb7 {[%emt 0:00:00]} 15. Nb4 {[%emt 0:00:00]} Na5 {[%emt 0:00:00]} 16. Nd5 {[%emt 0:00:00]} Nb7 {[%emt 0:00:00]} 17. e4 {[%emt 0:00:00]} Nc5 {[%emt 0:00:00]} 18. Ne1 {[%emt 0:00:00]} f5 {[%emt 0:00:00]} 19. Be3 {[%emt 0:00:00]} Nf6 {[%emt 0:00:00]} 20. Bxc5 {[%emt 0:00:00]} bxc5 {[%emt 0:00:00]} 21. Nc2 {[%emt 0:00:00]} Nxd5 {[%emt 0:00:00]} 22. cxd5 {[%emt 0:00:00]} f4 {[%emt 0:00:00]} 23. Qd1 {[%emt 0:00:00]} Qg5 {[%emt 0:00:00]} 24. Ne1 {[%emt 0:00:00]} Bg4 {[%emt 0:00:22]} 25. f3 {[%emt 0:00:00]} Bd7 {[%emt 0:00:02]} 26. g4 {[%emt 0:00:00]} Bxb5 {[%emt 0:00:07]} 27. Qc2 {[%emt 0:00:00]} Rb6 {[%emt 0:00:11]} 28. Qf2 {[%emt 0:00:00]} Rfb8 {[%emt 0:00:03]} 29. h4 {[%emt 0:00:00]} Qe7 {[%emt 0:00:19]} 30. Bh3 {[%emt 0:00:00]} g5 {[%emt 0:01:01]} 31. h5 {[%emt 0:00:00]} Qd7 {[%emt 0:00:24]} 32. Qd2 {[%emt 0:00:00]} Ba6 {[%emt 0:00:01]} 33. Rxb6 {[%emt 0:00:00]} cxb6 {[%emt 0:00:31]} 34. Nc2 {[%emt 0:00:00]} Qa4 {[%emt 0:00:01]} 35. Na1 {[%emt 0:00:00]} Qd4+ {[%emt 0:00:01]} 36. Kh2 {[%emt 0:00:00]} Bxd3 {[%emt 0:00:02]} 37. Rd1 {[%emt 0:00:00]} c4 {[%emt 0:00:01]} 38. Nc2 {[%emt 0:00:00]} Bxc2 {[%emt 0:00:32]} 39. Qxc2 {[%emt 0:00:00]} Qc5 {[%emt 0:00:03]} 40. Rb1 {[%emt 0:00:00]} b5 {[%emt 0:00:07]} 41. Bf1 {[%emt 0:00:00]} Bf6 {[%emt 0:01:11]} 42. Rb2 {[%emt 0:00:00]} Rc8 {[%emt 0:00:14]} 43. Qc3 {[%emt 0:00:00]} Bd8 {[%emt 0:00:05]} 44. a4 {[%emt 0:00:00]} a6 {[%emt 0:00:40]} 45. axb5 {[%emt 0:00:00]} Bb6 {[%emt 0:00:02]} 46. Bg2 {[%emt 0:00:49]} axb5 {[%emt 0:00:08]} 47. Rb1 {[%emt 0:02:22]} Ra8 {[%emt 0:00:08]} 48. Qb2 {[%emt 0:00:06]} c3 {[%emt 0:00:17]} 49. Qb3 {[%emt 0:00:25]} Ra3 {[%emt 0:00:31]} 50. Qc2 {[%emt 0:00:01]} b4 {[%emt 0:00:05]} 51. Kh3 {[%emt 0:00:31]} b3 {[%emt 0:00:19]} 52. Rxb3 {[%emt 0:00:08]} Rxb3 {[%emt 0:00:01]} 53. Qxb3 {[%emt 0:00:02]} c2 {[%emt 0:00:03]} 54. Qa4 {[%emt 0:00:01]} Qc7 {[%emt 0:00:06]} 55. Qe8 {[%emt 0:00:02]} Qg7 {[%emt 0:00:38]} 56. Qc8 {[%emt 0:02:43]} Bc5 {[%emt 0:00:02]} 57. Qf5+ {[%emt 0:00:03]} Kh8 {[%emt 0:00:03]} 58. Qc8+ {[%emt 0:00:06]} Qg8 {[%emt 0:00:07]} 59. Qf5 {[%emt 0:00:18]} c1=Q {[%emt 0:00:17]} 60. Qf6+ {[%emt 0:00:01]} Qg7 {[%emt 0:00:06]} 61. Qd8+ {[%emt 0:00:02]} Kh7 {[%emt 0:00:05]} 62. Qc8 {[%emt 0:00:03]} Qe1 {[%emt 0:00:10]} 0-1

[Event "11th LCC Rapid 2019"]
[Site "London"]
[Date "2019.12.07"]
[Round "2.21"]
[White "Jezierski, Colum"]
[Black "Rosario, Paulo Rbd"]
[Result "1-0"]
[WhiteElo "1908"]
[BlackElo "1767"]
[PlyCount "65"]
[EventDate "2019.12.08"]
[EventType "swiss"]
[EventCountry "ENG"]
[TimeControl "15+10"]
[WhiteClock "0:07:03"]
[BlackClock "0:07:12"]

1. e4 {[%emt 0:00:00]} d6 {[%emt 0:00:00]} 2. d4 {[%emt 0:00:00]} Nf6 {[%emt 0:00:00]} 3. Nc3 {[%emt 0:00:00]} e5 {[%emt 0:00:00]} 4. Nf3 {[%emt 0:00:00]} exd4 {[%emt 0:00:00]} 5. Nxd4 {[%emt 0:00:00]} Be7 {[%emt 0:00:00]} 6. Be2 {[%emt 0:00:00]} O-O {[%emt 0:00:00]} 7. Be3 {[%emt 0:00:00]} Re8 {[%emt 0:00:00]} 8. O-O {[%emt 0:00:00]} Bf8 {[%emt 0:00:00]} 9. f3 {[%emt 0:00:00]} c6 {[%emt 0:00:00]} 10. Qd2 {[%emt 0:00:00]} d5 {[%emt 0:00:00]} 11. exd5 {[%emt 0:00:00]} Nxd5 {[%emt 0:00:00]} 12. Nxd5 {[%emt 0:00:00]} Qxd5 {[%emt 0:00:00]} 13. c4 {[%emt 0:00:00]} Qe5 {[%emt 0:00:00]} 14. Bf2 {[%emt 0:00:00]} c5 {[%emt 0:00:00]} 15. Bd3 {[%emt 0:00:00]} cxd4 {[%emt 0:00:00]} 16. Rfe1 {[%emt 0:00:00]} Qe3 {[%emt 0:00:00]} 17. Bxe3 {[%emt 0:00:00]} dxe3 {[%emt 0:00:00]} 18. Qc2 {[%emt 0:00:00]} h6 {[%emt 0:00:00]} 19. Kh1 {[%emt 0:00:00]} Nc6 {[%emt 0:00:00]} 20. a3 {[%emt 0:00:00]} a5 {[%emt 0:00:00]} 21. c5 {[%emt 0:00:00]} a4 {[%emt 0:00:00]} 22. Be4 {[%emt 0:00:00]} Nd4 {[%emt 0:00:00]} 23. Qc3 {[%emt 0:00:00]} Nb3 {[%emt 0:00:00]} 24. Rad1 {[%emt 0:00:00]} Bxc5 {[%emt 0:00:00]} 25. Rd5 {[%emt 0:00:00]} Bb6 {[%emt 0:00:00]} 26. g4 {[%emt 0:00:00]} Ba5 {[%emt 0:00:00]} 27. Rxa5 {[%emt 0:00:00]} Rxa5 {[%emt 0:00:00]} 28. Rxe3 {[%emt 0:00:00]} Rae5 {[%emt 0:00:00]} 29. Bh7+ {[%emt 0:00:00]} Kxh7 {[%emt 0:00:00]} 30. Rxe5 {[%emt 0:00:00]} Rxe5 {[%emt 0:00:00]} 31. Qxe5 {[%emt 0:00:00]} Bd7 {[%emt 0:00:00]} 32. Qe4+ {[%emt 0:00:00]} f5 {[%emt 0:00:00]} 33. Qxb7 {[%emt 0:00:00]} 1-0